[Event "Serbian League Women 2024"]
[Site "Bajina Basta"]
[Date "2024.09.28"]
[Round "2.1"]
[White "Savitha Shri B"]
[Black "Aydin, Gulenay"]
[Result "1-0"]
[ECO "B48"]
[WhiteElo "2348"]
[BlackElo "2202"]
[Annotator "ChessBase"]
[PlyCount "71"]
[EventDate "2024.09.26"]
[EventType "team-tourn"]
[EventCountry "SRB"]
[SourceTitle "playchess.com"]
[Source "ChessBase"]
[SourceQuality "1"]
[TimeControl "40/5400+30:1800+30"]

1. e4 {[%emt 0:00:08]} c5 {[%emt 0:00:07]} 2. Nf3 {[%emt 0:00:16]} e6 {[%emt 0:00:07]} 3. d4 {[%emt 0:00:27]} cxd4 {[%emt 0:00:08]} 4. Nxd4 {[%emt 0:00:06]} Nc6 {[%emt 0:00:07]} 5. Nc3 {[%emt 0:00:27]} Qc7 {[%emt 0:00:07]} 6. Be3 {[%emt 0:00:04]} a6 {[%emt 0:00:06]} 7. a3 {[%emt 0:00:04]} b5 {[%emt 0:00:54]} 8. Nxc6 {[%emt 0:00:12]} Qxc6 {[%emt 0:00:07]} 9. Bd3 {[%emt 0:00:05]} Bb7 {[%emt 0:05:57]} 10. Qd2 {[%emt 0:00:07]} Nf6 {[%emt 0:12:29]} 11. e5 {[%emt 0:00:48]} Ng4 {[%emt 0:07:48]} 12. Bd4 {[%emt 0:00:27]} d5 {[%emt 0:11:57]} 13. Qe2 {[%emt 0:04:34]} Nh6 {[%emt 0:01:48]} 14. Nxb5 {[%emt 0:00:22]} Nf5 {[%emt 0:09:06]} 15. Bxf5 {[%emt 0:02:31]} axb5 {[%emt 0:02:30]} 16. Bd3 {[%emt 0:01:24]} Ba6 {[%emt 0:00:08]} 17. O-O {[%emt 0:02:09]} Be7 {[%emt 0:02:06]} 18. b4 {[%emt 0:06:04]} O-O {[%emt 0:02:30]} 19. a4 {[%emt 0:02:55]} Rab8 {[%emt 0:00:06]} 20. c3 {[%emt 0:01:18]} Rfc8 {[%emt 0:02:37]} 21. g3 {[%emt 0:08:32]} Qd7 {[%emt 0:04:20]} 22. axb5 {[%emt 0:13:22]} Bxb5 {[%emt 0:00:08]} 23. Bxb5 {[%emt 0:05:17]} Rxb5 {[%emt 0:04:23]} 24. Ra7 {[%emt 0:00:29]} Rb7 {[%emt 0:00:12]} 25. Rfa1 {[%emt 0:00:19]} Rxa7 {[%emt 0:17:02]} 26. Rxa7 {[%emt 0:00:11]} Qe8 {[%emt 0:00:07]} 27. Qa6 {[%emt 0:02:42]} Bf8 {[%emt 0:00:05]} 28. b5 {[%emt 0:01:42]} h5 {[%emt 0:06:26]} 29. b6 {[%emt 0:00:47]} Rb8 {[%emt 0:00:39]} 30. b7 {[%emt 0:03:42]} Qe7 {[%emt 0:01:20]} 31. Qc6 {[%emt 0:02:15]} h4 {[%emt 0:04:41]} 32. Qc8 {[%emt 0:02:56]} Qg5 {[%emt 0:01:27]} 33. Ra1 {[%emt 0:02:07]} h3 {[%emt 0:01:33]} 34. Qxb8 {[%emt 0:00:12]} Qf5 {[%emt 0:00:06]} 35. Qxf8+ {[%emt 0:00:04]} Kh7 {[%emt 0:00:10]} 36. b8=Q {[%emt 0:01:40]} 1-0

[Event "Serbian League Women 2024"]
[Site "Bajina Basta"]
[Date "2024.09.28"]
[Round "2.2"]
[White "Yildiz, Elif Zeren"]
[Black "Toncheva, Nadya"]
[Result "1/2-1/2"]
[ECO "B30"]
[WhiteElo "1934"]
[BlackElo "2301"]
[Annotator "ChessBase"]
[PlyCount "120"]
[EventDate "2024.09.26"]
[EventType "team-tourn"]
[EventCountry "SRB"]
[SourceTitle "playchess.com"]
[Source "ChessBase"]
[SourceQuality "1"]
[TimeControl "40/5400+30:1800+30"]

1. e4 {[%emt 0:00:02]} c5 {[%emt 0:00:06]} 2. Nf3 {[%emt 0:00:04]} Nc6 {[%emt 0:00:04]} 3. Bb5 {[%emt 0:00:14]} e6 {[%emt 0:00:04]} 4. Bxc6 {[%emt 0:00:06]} bxc6 {[%emt 0:00:05]} 5. d3 {[%emt 0:00:06]} Ne7 {[%emt 0:00:05]} 6. b3 {[%emt 0:00:04]} Qc7 {[%emt 0:00:46]} 7. e5 {[%emt 0:02:27]} Nf5 {[%emt 0:11:20]} 8. Bb2 {[%emt 0:05:34]} Be7 {[%emt 0:00:15]} 9. Nbd2 {[%emt 0:03:14]} f6 {[%emt 0:07:05]} 10. g4 {[%emt 0:12:14]} Nd4 {[%emt 0:00:59]} 11. Nxd4 {[%emt 0:00:08]} cxd4 {[%emt 0:00:05]} 12. exf6 {[%emt 0:00:19]} Qe5+ {[%emt 0:02:54]} 13. Qe2 {[%emt 0:06:14]} gxf6 {[%emt 0:01:14]} 14. g5 {[%emt 0:08:01]} Qxg5 {[%emt 0:18:40]} 15. Bxd4 {[%emt 0:06:57]} Qd5 {[%emt 0:04:02]} 16. Qe4 {[%emt 0:00:52]} Qxe4+ {[%emt 0:05:32]} 17. Nxe4 {[%emt 0:03:27]} e5 {[%emt 0:00:07]} 18. Bc5 {[%emt 0:02:25]} d5 {[%emt 0:00:06]} 19. Bxe7 {[%emt 0:00:37]} Kxe7 {[%emt 0:00:04]} 20. Nd2 {[%emt 0:02:42]} Rg8 {[%emt 0:00:28]} 21. Ke2 {[%emt 0:02:21]} Bg4+ {[%emt 0:07:25]} 22. f3 {[%emt 0:00:59]} Bh5 {[%emt 0:01:13]} 23. Rhg1 {[%emt 0:00:31]} f5 {[%emt 0:00:35]} 24. Kf2 {[%emt 0:00:37]} Kf6 {[%emt 0:00:33]} 25. Rxg8 {[%emt 0:08:00]} Rxg8 {[%emt 0:00:05]} 26. Re1 {[%emt 0:00:09]} Bf7 {[%emt 0:08:38]} 27. Nb1 {[%emt 0:06:24]} c5 {[%emt 0:07:18]} 28. c4 {[%emt 0:06:06]} d4 {[%emt 0:03:03]} 29. Nd2 {[%emt 0:03:06]} Be8 {[%emt 0:01:59]} 30. Rb1 {[%emt 0:04:44]} a5 {[%emt 0:03:42]} 31. a3 {[%emt 0:00:59]} Bh5 {[%emt 0:03:01]} 32. b4 {[%emt 0:07:02]} axb4 {[%emt 0:00:17]} 33. axb4 {[%emt 0:00:02]} cxb4 {[%emt 0:00:08]} 34. Rxb4 {[%emt 0:00:03]} Ra8 {[%emt 0:00:04]} 35. h4 {[%emt 0:00:27]} Ra2 {[%emt 0:02:06]} 36. Rb6+ {[%emt 0:00:34]} Ke7 {[%emt 0:01:30]} 37. Ke1 {[%emt 0:01:13]} Ra1+ {[%emt 0:00:31]} 38. Ke2 {[%emt 0:01:23]} Rh1 {[%emt 0:03:31]} 39. Rb5 {[%emt 0:02:04]} Rxh4 {[%emt 0:01:32]} 40. Rxe5+ {[%emt 0:00:05]} Kf6 {[%emt 0:00:03]} 41. Rd5 {[%emt 0:30:49]} Kg5 {[%emt 0:30:34]} 42. Nf1 {[%emt 0:06:05]} Rf4 {[%emt 0:04:51]} 43. Nd2 {[%emt 0:00:24]} Rh4 {[%emt 0:00:23]} 44. Nf1 {[%emt 0:00:05]} Rh3 {[%emt 0:00:48]} 45. Rxd4 {[%emt 0:00:05]} Rxf3 {[%emt 0:00:44]} 46. Ke1 {[%emt 0:00:14]} Rh3 {[%emt 0:00:00]} 47. c5 {[%emt 0:00:00]} Be8 {[%emt 0:00:00]} 48. Rd6 {[%emt 0:00:00]} Bb5 {[%emt 0:00:00]} 49. c6 {[%emt 0:00:00]} Rxd3 {[%emt 0:00:00]} 50. Rxd3 {[%emt 0:00:00]} Bxd3 {[%emt 0:00:00]} 51. c7 {[%emt 0:00:00]} Ba6 {[%emt 0:00:00]} 52. Ne3 {[%emt 0:00:00]} Kf4 {[%emt 0:00:00]} 53. Kf2 {[%emt 0:00:00]} h5 {[%emt 0:00:00]} 54. Nd5+ {[%emt 0:00:00]} Ke5 {[%emt 0:00:00]} 55. Ne7 {[%emt 0:00:00]} f4 {[%emt 0:00:00]} 56. c8=Q {[%emt 0:00:00]} Bxc8 {[%emt 0:00:00]} 57. Nxc8 {[%emt 0:00:00]} h4 {[%emt 0:00:00]} 58. Ne7 {[%emt 0:00:00]} h3 {[%emt 0:00:00]} 59. Ng6+ {[%emt 0:00:00]} Ke4 {[%emt 0:00:00]} 60. Nxf4 {[%emt 0:00:00]} Kxf4 {[%emt 0:00:00]} 1/2-1/2

[Event "Serbian League Women 2024"]
[Site "Bajina Basta"]
[Date "2024.09.28"]
[Round "2.3"]
[White "Grozdanovic, Anastasia"]
[Black "Vujcic, Milena"]
[Result "1/2-1/2"]
[ECO "D85"]
[WhiteElo "2041"]
[BlackElo "2076"]
[Annotator "NA"]
[PlyCount "119"]
[EventDate "2024.09.26"]
[EventType "team-tourn"]
[EventCountry "SRB"]
[SourceTitle "playchess.com"]
[Source "ChessBase"]
[SourceQuality "1"]
[TimeControl "40/5400+30:1800+30"]

1. d4 {[%emt 0:00:03]} Nf6 {[%emt 0:00:04]} 2. c4 {[%emt 0:00:07]} g6 {[%emt 0:00:04]} 3. Nc3 {[%emt 0:00:08]} d5 {[%emt 0:00:12]} 4. cxd5 {[%emt 0:00:33]} Nxd5 {[%emt 0:00:09]} 5. e4 {[%emt 0:00:03]} Nxc3 {[%emt 0:00:05]} 6. bxc3 {[%emt 0:00:03]} Bg7 {[%emt 0:00:06]} 7. Nf3 {[%emt 0:00:04]} c5 {[%emt 0:00:07]} 8. Bb5+ {[%emt 0:00:03]} Nc6 {[%emt 0:00:04]} 9. Rb1 {[%emt 0:00:03]} Qa5 {[%emt 0:02:41]} 10. O-O {[%emt 0:00:30]} O-O {[%emt 0:04:12]} 11. d5 {[%emt 0:08:10]} Ne5 {[%emt 0:03:13]} 12. Nxe5 {[%emt 0:04:53]} Bxe5 {[%emt 0:00:23]} 13. Bg5 {[%emt 0:00:05]} Qc7 {[%emt 0:03:13]} 14. f4 {[%emt 0:04:10]} Bxc3 {[%emt 0:08:23]} 15. Rc1 {[%emt 0:04:39]} Bg7 {[%emt 0:01:07]} 16. e5 {[%emt 0:03:56]} f6 {[%emt 0:01:31]} 17. d6 {[%emt 0:08:46]} exd6 {[%emt 0:07:14]} 18. exd6 {[%emt 0:03:46]} Qb6 {[%emt 0:13:37]} 19. Rb1 {[%emt 0:04:41]} Qd8 {[%emt 0:00:36]} 20. Bh4 {[%emt 0:01:22]} a6 {[%emt 0:03:03]} 21. Ba4 {[%emt 0:03:11]} Bd7 {[%emt 0:04:03]} 22. Qd5+ {[%emt 0:03:46]} Kh8 {[%emt 0:01:45]} 23. Bxd7 {[%emt 0:00:07]} Qxd7 {[%emt 0:00:03]} 24. Rxb7 {[%emt 0:00:20]} Qg4 {[%emt 0:02:03]} 25. Bf2 {[%emt 0:02:29]} Qxf4 {[%emt 0:02:54]} 26. Qxc5 {[%emt 0:05:41]} Rad8 {[%emt 0:03:58]} 27. Bg3 {[%emt 0:02:28]} Qe4 {[%emt 0:02:02]} 28. Qc7 {[%emt 0:01:01]} Rg8 {[%emt 0:01:32]} 29. Re1 {[%emt 0:02:39]} Qd4+ {[%emt 0:00:58]} 30. Kh1 {[%emt 0:00:34]} h5 {[%emt 0:00:48]} 31. Qc2 {[%emt 0:02:30]} Qg4 {[%emt 0:09:39]} 32. Qd3 {[%emt 0:02:40]} f5 {[%emt 0:05:58]} 33. Be5 {[%emt 0:04:17]} Bxe5 {[%emt 0:01:47]} 34. Rxe5 {[%emt 0:00:04]} Qf4 {[%emt 0:00:20]} 35. Rd5 {[%emt 0:06:09]} Qc1+ {[%emt 0:00:19]} 36. Qd1 {[%emt 0:00:02]} Qxd1+ {[%emt 0:00:08]} 37. Rxd1 {[%emt 0:00:22]} Rg7 {[%emt 0:01:13]} 38. Rb6 {[%emt 0:01:44]} a5 {[%emt 0:01:10]} 39. Kg1 {[%emt 0:00:48]} Rgd7 {[%emt 0:00:10]} 40. Kf2 {[%emt 0:00:53]} Kg7 {[%emt 0:00:06]} 41. Kf3 {[%emt 0:30:30]} Kf6 {[%emt 0:30:50]} 42. Rd5 {[%emt 0:02:56]} Rc8 {[%emt 0:02:42]} 43. Rb3 {[%emt 0:04:01]} a4 {[%emt 0:03:35]} 44. Rbd3 {[%emt 0:00:44]} Rc6 {[%emt 0:05:16]} 45. Ra5 {[%emt 0:01:56]} Rdxd6 {[%emt 0:02:00]} 46. Rxd6+ {[%emt 0:00:07]} Rxd6 {[%emt 0:00:02]} 47. Rxa4 {[%emt 0:00:05]} Rc6 {[%emt 0:00:12]} 48. h4 {[%emt 0:02:03]} g5 {[%emt 0:02:39]} 49. hxg5+ {[%emt 0:02:14]} Kxg5 {[%emt 0:00:04]} 50. Ra8 {[%emt 0:00:17]} Rc3+ {[%emt 0:00:21]} 51. Kf2 {[%emt 0:00:20]} h4 {[%emt 0:01:05]} 52. Ra4 {[%emt 0:01:53]} h3 {[%emt 0:01:42]} 53. gxh3 {[%emt 0:00:04]} Rxh3 {[%emt 0:00:04]} 54. Kg2 {[%emt 0:00:19]} Rc3 {[%emt 0:00:05]} 55. Kf2 {[%emt 0:00:24]} f4 {[%emt 0:00:08]} 56. Ra8 {[%emt 0:00:15]} Kf5 {[%emt 0:01:05]} 57. Rf8+ {[%emt 0:00:20]} Ke4 {[%emt 0:00:05]} 58. Re8+ {[%emt 0:00:10]} Kf5 {[%emt 0:00:09]} 59. Rf8+ {[%emt 0:00:04]} Ke4 {[%emt 0:00:03]} 60. Re8+ {[%emt 0:00:04]} 1/2-1/2

[Event "Serbian League Women 2024"]
[Site "Bajina Basta"]
[Date "2024.09.28"]
[Round "2.4"]
[White "Petrovic, Marija"]
[Black "Mihajlovic, Milena"]
[Result "1-0"]
[ECO "E61"]
[WhiteElo "1898"]
[BlackElo "2065"]
[Annotator "NA"]
[PlyCount "99"]
[EventDate "2024.09.26"]
[EventType "team-tourn"]
[EventCountry "SRB"]
[SourceTitle "playchess.com"]
[Source "ChessBase"]
[SourceQuality "1"]
[TimeControl "40/5400+30:1800+30"]

1. Nf3 {[%emt 0:00:04]} Nf6 {[%emt 0:00:09]} 2. b3 {[%emt 0:00:07]} g6 {[%emt 0:01:49]} 3. Bb2 {[%emt 0:00:09]} Bg7 {[%emt 0:00:06]} 4. e3 {[%emt 0:00:08]} d6 {[%emt 0:00:46]} 5. d4 {[%emt 0:00:14]} O-O {[%emt 0:00:27]} 6. Be2 {[%emt 0:00:06]} Nbd7 {[%emt 0:01:28]} 7. c4 {[%emt 0:03:34]} c5 {[%emt 0:03:53]} 8. O-O {[%emt 0:00:21]} b6 {[%emt 0:12:39]} 9. Nc3 {[%emt 0:00:17]} cxd4 {[%emt 0:03:34]} 10. exd4 {[%emt 0:00:12]} Bb7 {[%emt 0:00:16]} 11. d5 {[%emt 0:00:44]} Nc5 {[%emt 0:01:55]} 12. Qc2 {[%emt 0:01:28]} Rc8 {[%emt 0:09:43]} 13. Rad1 {[%emt 0:00:53]} a6 {[%emt 0:01:28]} 14. Nd4 {[%emt 0:06:00]} Qc7 {[%emt 0:18:46]} 15. b4 {[%emt 0:06:26]} Ncd7 {[%emt 0:01:08]} 16. b5 {[%emt 0:05:48]} Nxd5 {[%emt 0:03:25]} 17. cxd5 {[%emt 0:07:14]} Bxd5 {[%emt 0:00:14]} 18. Nxd5 {[%emt 0:05:18]} Qxc2 {[%emt 0:00:37]} 19. Nxe7+ {[%emt 0:02:12]} Kh8 {[%emt 0:00:04]} 20. Nxc2 {[%emt 0:00:08]} Rxc2 {[%emt 0:00:37]} 21. Bxg7+ {[%emt 0:00:10]} Kxg7 {[%emt 0:00:05]} 22. Bf3 {[%emt 0:05:17]} Rxa2 {[%emt 0:03:48]} 23. Rxd6 {[%emt 0:01:09]} Ne5 {[%emt 0:00:24]} 24. bxa6 {[%emt 0:01:30]} Nxf3+ {[%emt 0:01:44]} 25. gxf3 {[%emt 0:00:02]} Rxa6 {[%emt 0:00:06]} 26. Nd5 {[%emt 0:00:30]} Ra3 {[%emt 0:02:11]} 27. Rxb6 {[%emt 0:00:40]} Rxf3 {[%emt 0:00:05]} 28. Ne3 {[%emt 0:00:11]} Ra8 {[%emt 0:01:53]} 29. Rc1 {[%emt 0:01:03]} Ra5 {[%emt 0:02:16]} 30. Kg2 {[%emt 0:00:51]} Rf4 {[%emt 0:00:13]} 31. Kg3 {[%emt 0:01:27]} g5 {[%emt 0:01:04]} 32. Rc4 {[%emt 0:00:26]} Rxc4 {[%emt 0:03:33]} 33. Nxc4 {[%emt 0:00:09]} Rc5 {[%emt 0:00:21]} 34. Nd2 {[%emt 0:01:50]} h5 {[%emt 0:01:33]} 35. Ne4 {[%emt 0:01:59]} Re5 {[%emt 0:02:45]} 36. Kf3 {[%emt 0:00:18]} Rf5+ {[%emt 0:03:24]} 37. Ke3 {[%emt 0:03:29]} f6 {[%emt 0:00:44]} 38. Ng3 {[%emt 0:06:25]} Re5+ {[%emt 0:00:27]} 39. Kf3 {[%emt 0:00:17]} Kg6 {[%emt 0:05:17]} 40. Rc6 {[%emt 0:01:21]} h4 {[%emt 0:02:20]} 41. Ne4 {[%emt 0:30:49]} Rf5+ {[%emt 0:30:08]} 42. Ke3 {[%emt 0:01:03]} g4 {[%emt 0:00:23]} 43. Nd2 {[%emt 0:02:40]} Kg5 {[%emt 0:00:54]} 44. Rc5 {[%emt 0:02:38]} Kg6 {[%emt 0:08:00]} 45. Rxf5 {[%emt 0:01:43]} Kxf5 {[%emt 0:00:05]} 46. Ne4 {[%emt 0:01:39]} Ke5 {[%emt 0:00:37]} 47. Nc5 {[%emt 0:00:08]} f5 {[%emt 0:01:48]} 48. Nd3+ {[%emt 0:00:11]} Kf6 {[%emt 0:00:49]} 49. Kf4 {[%emt 0:00:11]} g3 {[%emt 0:00:20]} 50. fxg3 {[%emt 0:00:18]} 1-0

[Event "Serbian League Women 2024"]
[Site "Bajina Basta"]
[Date "2024.09.28"]
[Round "2.5"]
[White "Badelka, Olga"]
[Black "Bivol, Alina"]
[Result "1-0"]
[ECO "A05"]
[WhiteElo "2430"]
[BlackElo "2345"]
[Annotator "ChessBase"]
[PlyCount "57"]
[EventDate "2024.09.26"]
[EventType "team-tourn"]
[EventCountry "SRB"]
[SourceTitle "playchess.com"]
[Source "ChessBase"]
[SourceQuality "1"]
[TimeControl "40/5400+30:1800+30"]

1. Nf3 {[%emt 0:00:04]} Nf6 {[%emt 0:00:43]} 2. g3 {[%emt 0:00:14]} b6 {[%emt 0:01:07]} 3. Bg2 {[%emt 0:00:08]} Bb7 {[%emt 0:00:10]} 4. O-O {[%emt 0:00:59]} d5 {[%emt 0:01:34]} 5. d3 {[%emt 0:00:33]} Nbd7 {[%emt 0:00:27]} 6. Nbd2 {[%emt 0:01:32]} e6 {[%emt 0:00:39]} 7. Re1 {[%emt 0:00:28]} Bd6 {[%emt 0:08:49]} 8. e4 {[%emt 0:01:41]} dxe4 {[%emt 0:00:05]} 9. dxe4 {[%emt 0:02:23]} e5 {[%emt 0:05:37]} 10. Nc4 {[%emt 0:01:55]} O-O {[%emt 0:00:55]} 11. Nxd6 {[%emt 0:20:15]} cxd6 {[%emt 0:00:06]} 12. Nh4 {[%emt 0:02:34]} Nc5 {[%emt 0:03:42]} 13. Nf5 {[%emt 0:01:00]} Bxe4 {[%emt 0:12:13]} 14. Bxe4 {[%emt 0:00:28]} Ncxe4 {[%emt 0:00:13]} 15. Rxe4 {[%emt 0:01:26]} Nxe4 {[%emt 0:01:20]} 16. Qg4 {[%emt 0:00:05]} g6 {[%emt 0:03:32]} 17. Nh6+ {[%emt 0:00:12]} Kg7 {[%emt 0:00:52]} 18. Qxe4 {[%emt 0:00:22]} Qe7 {[%emt 0:11:46]} 19. g4 {[%emt 0:13:48]} Rac8 {[%emt 0:06:32]} 20. g5 {[%emt 0:17:35]} Qe6 {[%emt 0:00:53]} 21. b3 {[%emt 0:00:44]} d5 {[%emt 0:11:52]} 22. Qh4 {[%emt 0:00:21]} f5 {[%emt 0:07:43]} 23. gxf6+ {[%emt 0:00:10]} Qxf6 {[%emt 0:03:16]} 24. Bg5 {[%emt 0:00:11]} Qf3 {[%emt 0:02:09]} 25. Re1 {[%emt 0:12:03]} Rce8 {[%emt 0:11:31]} 26. Re3 {[%emt 0:11:24]} Qd1+ {[%emt 0:00:05]} 27. Kg2 {[%emt 0:00:03]} Qxc2 {[%emt 0:05:02]} 28. Ng4 {[%emt 0:00:57]} Rf5 {[%emt 0:01:03]} 29. Bf6+ {[%emt 0:02:49]} 1-0

[Event "Serbian League Women 2024"]
[Site "Bajina Basta"]
[Date "2024.09.28"]
[Round "2.6"]
[White "Velikic, Adela"]
[Black "Zimina, Olga"]
[Result "1/2-1/2"]
[ECO "D16"]
[WhiteElo "2260"]
[BlackElo "2302"]
[Annotator "ChessBase"]
[PlyCount "89"]
[EventDate "2024.09.26"]
[EventType "team-tourn"]
[EventCountry "SRB"]
[SourceTitle "playchess.com"]
[Source "ChessBase"]
[SourceQuality "1"]
[TimeControl "40/5400+30:1800+30"]

1. d4 {[%emt 0:00:03]} d5 {[%emt 0:00:08]} 2. c4 {[%emt 0:00:06]} c6 {[%emt 0:00:06]} 3. Nf3 {[%emt 0:00:12]} Nf6 {[%emt 0:00:05]} 4. Nc3 {[%emt 0:00:06]} dxc4 {[%emt 0:00:04]} 5. a4 {[%emt 0:00:08]} e6 {[%emt 0:00:03]} 6. e3 {[%emt 0:00:15]} c5 {[%emt 0:00:05]} 7. Bxc4 {[%emt 0:00:13]} Nc6 {[%emt 0:00:05]} 8. O-O {[%emt 0:00:33]} cxd4 {[%emt 0:00:04]} 9. Nxd4 {[%emt 0:00:46]} Nxd4 {[%emt 0:01:34]} 10. exd4 {[%emt 0:00:06]} Be7 {[%emt 0:00:23]} 11. Qf3 {[%emt 0:01:16]} O-O {[%emt 0:00:43]} 12. Rd1 {[%emt 0:02:53]} Qc7 {[%emt 0:09:08]} 13. Bd3 {[%emt 0:16:23]} Rd8 {[%emt 0:02:35]} 14. Bf4 {[%emt 0:12:33]} Qc6 {[%emt 0:00:42]} 15. Qe2 {[%emt 0:06:29]} a6 {[%emt 0:07:17]} 16. Rac1 {[%emt 0:13:03]} Qb6 {[%emt 0:15:34]} 17. Be5 {[%emt 0:14:37]} Bd7 {[%emt 0:07:37]} 18. Bb1 {[%emt 0:04:16]} Bc6 {[%emt 0:01:58]} 19. Rd3 {[%emt 0:02:41]} Rac8 {[%emt 0:03:46]} 20. Rcd1 {[%emt 0:02:24]} Qb4 {[%emt 0:08:56]} 21. Rg3 {[%emt 0:12:48]} Bxa4 {[%emt 0:03:23]} 22. Nxa4 {[%emt 0:04:18]} Qxa4 {[%emt 0:00:07]} 23. b3 {[%emt 0:00:47]} Qa3 {[%emt 0:10:42]} 24. Qd2 {[%emt 0:00:36]} g6 {[%emt 0:00:52]} 25. Qh6 {[%emt 0:04:50]} Bf8 {[%emt 0:02:00]} 26. Qh4 {[%emt 0:00:24]} Qc1 {[%emt 0:11:24]} 27. Rf1 {[%emt 0:00:40]} Nd5 {[%emt 0:03:22]} 28. Rh3 {[%emt 0:00:22]} h6 {[%emt 0:00:06]} 29. Be4 {[%emt 0:00:36]} Be7 {[%emt 0:03:56]} 30. Qxh6 {[%emt 0:00:29]} Qxh6 {[%emt 0:00:09]} 31. Rxh6 {[%emt 0:00:01]} f6 {[%emt 0:04:36]} 32. Bg3 {[%emt 0:00:12]} g5 {[%emt 0:00:21]} 33. f4 {[%emt 0:01:14]} Nc3 {[%emt 0:02:30]} 34. Bxb7 {[%emt 0:00:37]} Ne2+ {[%emt 0:00:39]} 35. Kh1 {[%emt 0:00:23]} Rc7 {[%emt 0:00:56]} 36. Bxa6 {[%emt 0:00:13]} Nxg3+ {[%emt 0:01:26]} 37. hxg3 {[%emt 0:00:02]} g4 {[%emt 0:00:46]} 38. f5 {[%emt 0:01:19]} exf5 {[%emt 0:00:09]} 39. Rxf5 {[%emt 0:00:32]} Rc1+ {[%emt 0:00:20]} 40. Kh2 {[%emt 0:00:32]} Rxd4 {[%emt 0:00:15]} 41. Bc4+ {[%emt 0:07:20]} Kg7 {[%emt 0:01:55]} 42. Rfh5 {[%emt 0:03:00]} Rdxc4 {[%emt 0:01:35]} 43. bxc4 {[%emt 0:03:53]} Bc5 {[%emt 0:00:07]} 44. Rh7+ {[%emt 0:05:43]} Kg6 {[%emt 0:00:30]} 45. R7h6+ {[%emt 0:00:21]} 1/2-1/2

[Event "Serbian League Women 2024"]
[Site "Bajina Basta"]
[Date "2024.09.28"]
[Round "2.7"]
[White "Vujovic, Vera"]
[Black "Zhurova, Anna"]
[Result "1-0"]
[ECO "B28"]
[WhiteElo "2175"]
[BlackElo "2199"]
[Annotator "ChessBase"]
[PlyCount "77"]
[EventDate "2024.09.26"]
[EventType "team-tourn"]
[EventCountry "SRB"]
[SourceTitle "playchess.com"]
[Source "ChessBase"]
[SourceQuality "1"]
[TimeControl "40/5400+30:1800+30"]

1. e4 {[%emt 0:00:01]} c5 {[%emt 0:00:29]} 2. Nf3 {[%emt 0:00:04]} a6 {[%emt 0:00:31]} 3. c4 {[%emt 0:00:19]} Nc6 {[%emt 0:00:18]} 4. d4 {[%emt 0:00:26]} cxd4 {[%emt 0:00:13]} 5. Nxd4 {[%emt 0:00:08]} Nf6 {[%emt 0:00:33]} 6. Nc3 {[%emt 0:00:21]} e5 {[%emt 0:00:57]} 7. Nc2 {[%emt 0:04:07]} Bc5 {[%emt 0:00:17]} 8. Be2 {[%emt 0:10:55]} d6 {[%emt 0:00:36]} 9. O-O {[%emt 0:02:13]} Be6 {[%emt 0:01:22]} 10. Rb1 {[%emt 0:05:43]} Rc8 {[%emt 0:09:21]} 11. Bg5 {[%emt 0:09:37]} h6 {[%emt 0:05:19]} 12. Bxf6 {[%emt 0:01:11]} gxf6 {[%emt 0:05:29]} 13. Bg4 {[%emt 0:12:53]} h5 {[%emt 0:05:33]} 14. Bxe6 {[%emt 0:06:18]} fxe6 {[%emt 0:03:24]} 15. b4 {[%emt 0:08:41]} Ba7 {[%emt 0:01:30]} 16. Qd3 {[%emt 0:05:55]} Ne7 {[%emt 0:09:32]} 17. Rfd1 {[%emt 0:03:47]} Kf7 {[%emt 0:02:32]} 18. Na3 {[%emt 0:01:26]} Bb8 {[%emt 0:10:29]} 19. Ne2 {[%emt 0:10:05]} Qg8 {[%emt 0:03:16]} 20. b5 {[%emt 0:02:11]} Qg4 {[%emt 0:04:11]} 21. Nc2 {[%emt 0:03:10]} axb5 {[%emt 0:04:47]} 22. Rxb5 {[%emt 0:01:08]} Rc7 {[%emt 0:13:09]} 23. Rdb1 {[%emt 0:00:42]} Rg8 {[%emt 0:00:56]} 24. Ne3 {[%emt 0:04:25]} Qg6 {[%emt 0:06:50]} 25. Rxb7 {[%emt 0:01:07]} Rcc8 {[%emt 0:00:17]} 26. Nc3 {[%emt 0:01:51]} Rgd8 {[%emt 0:03:32]} 27. a4 {[%emt 0:01:11]} Kf8 {[%emt 0:01:11]} 28. a5 {[%emt 0:00:57]} Nc6 {[%emt 0:01:31]} 29. a6 {[%emt 0:00:06]} Ba7 {[%emt 0:01:16]} 30. Nb5 {[%emt 0:01:33]} Bc5 {[%emt 0:01:54]} 31. Ra1 {[%emt 0:02:50]} Kg8 {[%emt 0:02:59]} 32. Nc7 {[%emt 0:00:37]} Kh8 {[%emt 0:01:24]} 33. Nxe6 {[%emt 0:00:24]} Rg8 {[%emt 0:00:42]} 34. Nxc5 {[%emt 0:00:05]} dxc5 {[%emt 0:00:01]} 35. g3 {[%emt 0:00:59]} Nd4 {[%emt 0:00:48]} 36. Nd5 {[%emt 0:00:24]} Qg5 {[%emt 0:00:49]} 37. Ne7 {[%emt 0:00:32]} Qg4 {[%emt 0:00:22]} 38. Nxg8 {[%emt 0:00:33]} Rd8 {[%emt 0:00:33]} 39. Nxf6 {[%emt 0:00:19]} 1-0

[Event "Serbian League Women 2024"]
[Site "Bajina Basta"]
[Date "2024.09.28"]
[Round "2.8"]
[White "Srdanovic, Jovana"]
[Black "Nestorovic, Katarina"]
[Result "0-1"]
[ECO "E20"]
[WhiteElo "2142"]
[BlackElo "2038"]
[Annotator "ChessBase"]
[PlyCount "82"]
[EventDate "2024.09.26"]
[EventType "team-tourn"]
[EventCountry "SRB"]
[SourceTitle "playchess.com"]
[Source "ChessBase"]
[SourceQuality "1"]
[TimeControl "40/5400+30:1800+30"]

1. d4 {[%emt 0:00:02]} Nf6 {[%emt 0:00:07]} 2. c4 {[%emt 0:00:04]} e6 {[%emt 0:00:07]} 3. Nc3 {[%emt 0:00:12]} Bb4 {[%emt 0:00:15]} 4. f3 {[%emt 0:00:16]} Nc6 {[%emt 0:01:54]} 5. e4 {[%emt 0:01:59]} e5 {[%emt 0:01:12]} 6. d5 {[%emt 0:06:22]} Nd4 {[%emt 0:01:36]} 7. Bd3 {[%emt 0:08:16]} Be7 {[%emt 0:04:54]} 8. Be3 {[%emt 0:07:39]} c5 {[%emt 0:00:50]} 9. Nge2 {[%emt 0:09:50]} d6 {[%emt 0:01:39]} 10. Qd2 {[%emt 0:03:56]} O-O {[%emt 0:02:52]} 11. Ng3 {[%emt 0:02:43]} h5 {[%emt 0:11:32]} 12. O-O {[%emt 0:15:21]} g6 {[%emt 0:08:07]} 13. Nb5 {[%emt 0:12:19]} a6 {[%emt 0:07:19]} 14. Nxd4 {[%emt 0:00:51]} cxd4 {[%emt 0:00:11]} 15. Bh6 {[%emt 0:00:47]} Nh7 {[%emt 0:15:47]} 16. f4 {[%emt 0:01:55]} Re8 {[%emt 0:01:54]} 17. fxe5 {[%emt 0:02:32]} dxe5 {[%emt 0:00:55]} 18. Qf2 {[%emt 0:01:45]} Bf6 {[%emt 0:08:02]} 19. c5 {[%emt 0:04:27]} h4 {[%emt 0:00:34]} 20. Ne2 {[%emt 0:02:03]} g5 {[%emt 0:01:21]} 21. Rae1 {[%emt 0:02:40]} Kh8 {[%emt 0:01:30]} 22. Qf3 {[%emt 0:06:15]} Qa5 {[%emt 0:12:53]} 23. Qh5 {[%emt 0:01:49]} Qd2 {[%emt 0:02:09]} 24. Nc1 {[%emt 0:00:33]} Rg8 {[%emt 0:06:51]} 25. Re2 {[%emt 0:02:17]} Qb4 {[%emt 0:01:15]} 26. Nb3 {[%emt 0:02:39]} Rg6 {[%emt 0:01:26]} 27. Ref2 {[%emt 0:01:02]} Bd7 {[%emt 0:01:49]} 28. Rc2 {[%emt 0:03:09]} Bb5 {[%emt 0:01:49]} 29. Bxb5 {[%emt 0:00:05]} Qxb5 {[%emt 0:00:17]} 30. c6 {[%emt 0:00:26]} bxc6 {[%emt 0:00:32]} 31. dxc6 {[%emt 0:00:31]} Rc8 {[%emt 0:00:28]} 32. Rc5 {[%emt 0:01:08]} Qb6 {[%emt 0:00:18]} 33. Rd5 {[%emt 0:00:05]} Qxc6 {[%emt 0:00:54]} 34. Rc1 {[%emt 0:00:32]} Qb7 {[%emt 0:00:58]} 35. Rf1 {[%emt 0:00:37]} Qb6 {[%emt 0:01:02]} 36. Rd7 {[%emt 0:00:32]} Qe6 {[%emt 0:00:20]} 37. Rb7 {[%emt 0:00:23]} Be7 {[%emt 0:01:00]} 38. Bxg5 {[%emt 0:00:27]} Rxg5 {[%emt 0:00:11]} 39. Qxf7 {[%emt 0:00:06]} Qg4 {[%emt 0:00:59]} 40. Rf2 {[%emt 0:00:18]} Rg7 {[%emt 0:01:06]} 41. Qd5 {[%emt 0:30:27]} Ng5 {[%emt 0:30:48]} 0-1